Cogmind - Beta 15 @@@ ROGUE MODE // 2025.05.24 @ 14:52:39 Player: Figgis Result: Destroyed by exploding Energy Cycler Performance ------------- Evolutions (9) 4500 Regions Visited (18) 3600 Robots Destroyed (59) 295 Value Destroyed (2044) 2044 Prototype IDs (43) 860 Alien Tech Used (0) 0 Bonus (2248) 2248 TOTAL SCORE: 13547 Bonus ------- Triggered Max Security 1000 High Alert Combat Kills 60 Follower Combat Kills 199 Aligned with FarCom 300 Met Imprinter 300 Scanned by Researcher 500 Friendly Fire -111 Cogmind --------- Core Integrity 0/1600 Matter 235/300 Energy 98/100 System Corruption 17% Temperature Cool (12) Movement Core (50) Location -1/Access Parts ------- > --- POWER (3) -------- (None) > --- PROPULSION (11) -- (None) > --- UTILITY (9) ------ Advanced Visual Processing Unit > --- WEAPON (2) ------- (None) > --- INVENTORY (5) ---- Faulty Cooled Q-thruster Peak State ------------ > --- POWER ------------ Micro Antimatter Reactor Quantum Reactor > --- PROPULSION ------- Field Propulsion Array Field Propulsion Array Diametric Drive Impulse Thruster Array Impulse Thruster Array Cooled Q-thruster > --- UTILITY ---------- Advanced Cryofiber Web Advanced Heat Sink Large Storage Unit Advanced Visual Processing Unit Improved Transmission Jammer Improved Cloaking Device Advanced Point Defense System Advanced System Restoration Module > --- WEAPON ----------- Power Sword Vibroblade > --- INVENTORY -------- Micro Nuclear Core Light Fission Core Light Antimatter Reactor Micro Antimatter Reactor Light Quantum Reactor Improved Cesium-ion Thruster Field Propulsion Array Field Propulsion Array Advanced Cryofiber Web Improved Hacking Suite Phasing AFG Force Lance Force Lance [Rating: 161] Favorites ----------- Power Light Fission Core Engine Ion Engine Power Core Light Fission Core Reactor Light Particle Reactor Propulsion Improved Surge Thruster Leg Aluminum Leg Hover Unit Improved Gyrokinetic Inverter Flight Unit Improved Surge Thruster Utility System Shield Device Advanced Heat Sink Storage Large Storage Unit Processor Advanced Targeting Computer Hackware System Shield Protection Improved Light Armor Plating Weapon Heavy Machine Gun Energy Gun Particle Gun Ballistic Gun Heavy Machine Gun Ballistic Cannon Assault Cannon Special Weapon RU-N14's Throwing Claymores Slashing Weapon Ionic Axe Piercing Weapon Force Lance Build | -11 -10 -10 -10 -9 -8 -7 -6 -6 -6 -6 -5 -5 -4 -4 -3 -2 -2 -1 ------- Run | Yrd Mat Min Exi Min Mat Fac Fac Low Low Zio Pro Fac Fac Ext Res Res Tes Acc Slots Evolved 18 | . . . . . 4 2 2 . . . . 2 2 . 2 2 . 2 Power 2 | . . . . . . . 1 . . . . . . . . . . 1 Propulsion 9 | . . . . . 2 1 1 . . . . 1 1 . 1 1 . 1 Utility 7 | . . . . . 2 1 . . . . . 1 1 . 1 1 . . Weapon . | . . . . . . . . . . . . . . . . . . . Parts Attached 115 | 6 3 . . 1 10 16 8 . . 2 1 8 8 4 22 6 13 7 Power 20 | 1 1 . . . 1 1 3 . . . . 1 . 2 5 2 3 . Engine 5 | 1 1 . . . 1 . 1 . . . . . . . 1 . . . Core 6 | . . . . . . 1 2 . . . . 1 . 2 . . . . Reactor 9 | . . . . . . . . . . . . . . . 4 2 3 . Propulsion 40 | 2 . . . . 5 5 3 . . . . 3 6 1 4 2 6 3 Treads . | . . . . . . . . . . . . . . . . . . . Leg 6 | 2 . . . . 3 . . . . . . . . . . . . 1 Wheel . | . . . . . . . . . . . . . . . . . . . Hover 2 | . . . . . . . . . . . . . . . . . . 2 Flight 32 | . . . . . 2 5 3 . . . . 3 6 1 4 2 6 . Utility 31 | 1 2 . . . 1 5 . . . 1 1 2 2 1 8 2 3 2 Device 14 | . . . . . 1 . . . . 1 1 . 1 . 6 2 1 1 Storage 2 | 1 1 . . . . . . . . . . . . . . . . . Processor 4 | . 1 . . . . 1 . . . . . . . 1 1 . . . Hackware 7 | . . . . . . 3 . . . . . 1 1 . 1 . 1 . Protection 4 | . . . . . . 1 . . . . . 1 . . . . 1 1 Artifact . | . . . . . . . . . . . . . . . . . . . Weapon 24 | 2 . . . 1 3 5 2 . . 1 . 2 . . 5 . 1 2 Energy Gun 2 | . . . . . 1 . . . . . . . . . . . . 1 Energy Cannon . | . . . . . . . . . . . . . . . . . . . Ballistic Gun 7 | 2 . . . 1 1 2 1 . . . . . . . . . . . Ballistic Cannon 3 | . . . . . 1 2 . . . . . . . . . . . . Launcher . | . . . . . . . . . . . . . . . . . . . Special Weapon 1 | . . . . . . . . . . 1 . . . . . . . . Impact Weapon . | . . . . . . . . . . . . . . . . . . . Slashing Weapon 8 | . . . . . . 1 1 . . . . 2 . . 3 . . 1 Piercing Weapon 3 | . . . . . . . . . . . . . . . 2 . 1 . Special Melee Weapon . | . . . . . . . . . . . . . . . . . . . Unidentified Prototypes 13 | . . . . . 2 1 . . . 2 . 1 . . 3 . 4 . Parts Lost 49 | . . . . 2 2 2 . . . . . . . 3 6 1 25 8 Power 7 | . . . . . 1 . . . . . . . . . 1 . 5 . Propulsion 20 | . . . . . 1 2 . . . . . . . 2 3 . 10 2 Utility 15 | . . . . 1 . . . . . . . . . 1 2 1 7 3 Weapon 7 | . . . . 1 . . . . . . . . . . . . 3 3 Highest Loss Streak 19 | . . . . 2 1 2 . . . . . . . 3 3 1 19 8 To Critical Strikes . | . . . . . . . . . . . . . . . . . . . Average Backups 10 | 2 3 4 4 4 5 13 14 15 15 15 14 14 13 12 12 12 8 2 Power 2 | . 1 1 1 1 1 3 2 2 2 2 2 3 3 3 3 5 2 . Propulsion 4 | . 1 2 2 3 1 5 6 7 7 7 7 7 7 3 2 2 3 1 Utility 2 | . . . . . . 2 3 4 4 4 4 2 2 3 3 2 1 . Weapon 1 | 1 1 1 1 . 1 1 2 2 2 1 1 1 1 2 2 2 1 . Tool/Special . | . . . . . . . . . . . . . . . . . . . Unused Backups 5 | . . . . . . 2 . . . . 1 2 . . . . . . Power 1 | . . . . . . 1 . . . . . . . . . . . . Propulsion 1 | . . . . . . . . . . . 1 . . . . . . . Utility 2 | . . . . . . . . . . . . 2 . . . . . . Weapon 1 | . . . . . . 1 . . . . . . . . . . . . Tool/Special . | . . . . . . . . . . . . . . . . . . . Average Slot Usage (%) 76 | . 96 100 100 86 75 68 79 80 80 77 77 81 84 88 86 80 63 21 Engine 4 | . 14 14 14 14 9 6 5 6 6 6 6 . . . . . . . Core 3 | . . . . . . . 6 6 6 6 6 10 10 8 2 . . . Reactor 1 | . . . . . . . . . . . . . . . 5 8 5 . Leg 6 | . 28 28 28 28 31 3 . . . . . . . . . . . 2 Flight 16 | . . . . . . 12 20 20 20 20 20 23 27 41 36 25 23 . Device 6 | . . . . . 6 1 . . . . 3 5 7 10 18 28 16 4 Storage 6 | . 14 14 14 14 9 7 6 6 6 6 6 5 5 5 4 4 3 . Processor 4 | . 11 14 14 1 . 5 6 6 6 3 . . . . . 4 4 4 Hackware 10 | . . . . . . 12 20 20 20 20 20 21 17 13 7 . 2 . Ballistic Gun 6 | . 28 28 28 28 4 5 10 6 6 6 12 . . . . . . . Ballistic Cannon 1 | . . . . . 6 5 . . . . . . . . . . . . Slashing Weapon 3 | . . . . . . . 2 6 6 6 . 10 10 4 1 8 2 2 Peak Build Rating 161 | 6 7 7 10 10 36 68 81 81 81 93 84 97 109 93 140 158 161 59 Average Rating 73 | 3 6 7 8 9 20 53 80 81 81 80 82 95 104 84 110 153 126 36 On Entrance 57 | . 6 7 7 10 9 21 68 81 81 81 79 84 97 90 83 131 153 6 Naked Turns . | . . . . . . . . . . . . . . . . . . . Heaviest Build 73 | 12 29 29 29 29 34 49 46 44 44 59 47 47 49 42 60 73 66 33 Greatest Support 75 | 20 20 20 20 20 50 56 62 58 58 58 58 69 75 50 74 74 75 24 Greatest Overweight (x) 10 | . 1 1 1 1 . 1 . . . 1 . . . . . . . 10 Average Overweight (x) . | . . 1 1 1 . . . . . . . . . . . . . . Largest Inventory Capacity 15 | 8 15 15 15 15 15 15 15 15 15 15 15 15 15 15 15 15 15 5 Average Capacity 14 | 6 9 15 15 15 15 15 15 15 15 15 15 15 15 15 15 15 13 5 Most Carried 15 | 5 5 4 8 8 11 15 15 15 15 15 15 15 15 14 15 15 15 5 Average Carried 11 | 3 3 4 5 7 8 13 14 15 15 14 14 14 13 13 13 13 9 2 Final Capacity 15 | 8 15 15 15 15 15 15 15 15 15 15 15 15 15 15 15 15 5 5 Final Carried 15 | 2 4 4 8 7 11 15 15 15 15 15 15 15 14 12 12 15 5 1 Class Distribution -------------------- 44% | Hacker-Sprinter 23% | Mutant 12% | Hacker-Mutant 8% | Scavenger-Mutant 5% | Infiltrator-Sprinter 5% | Sprinter Dominant Class ---------------- Mutant | -10/Materials Mutant | -10/Mines Mutant | -10/Exiles Mutant | -9/Mines Scavenger-Mutant | -8/Materials Hacker-Mutant | -7/Factory Hacker-Sprinter | -6/Factory Hacker-Sprinter | -6/Lower Caves Hacker-Sprinter | -6/Lower Caves Hacker-Sprinter | -6/Zion Hacker-Sprinter | -5/Proximity Caves Hacker-Sprinter | -5/Factory Hacker-Sprinter | -4/Factory Hacker-Sprinter | -4/Extension Hacker-Sprinter | -3/Research Infiltrator-Sprinter | -2/Research Infiltrator-Sprinter | -2/Testing Mutant | -1/Access Resources | -11 -10 -10 -10 -9 -8 -7 -6 -6 -6 -6 -5 -5 -4 -4 -3 -2 -2 -1 ----------- Run | Yrd Mat Min Exi Min Mat Fac Fac Low Low Zio Pro Fac Fac Ext Res Res Tes Acc Matter Collected 2412 | 240 92 30 . 78 265 197 429 . 56 15 250 204 90 . 331 60 14 61 Remotely . | . . . . . . . . . . . . . . . . . . . Salvage Created 2236 | . 152 89 . 97 329 200 246 . . . 183 340 . 151 310 78 . 61 Parts 132 | . 14 8 . 7 24 18 13 . . . 8 10 . 9 13 4 . 4 Haulers Intercepted 1 | . . . . . . . . . . . . 1 . . . . . . Recyclers Shooed 1 | . 1 . . . . . . . . . . . . . . . . . Parts Field Recycled . | . . . . . . . . . . . . . . . . . . . Retrieved Matter . | . . . . . . . . . . . . . . . . . . . Parts Self-Destructed 17 | . . . . . . . . . . . 17 . . . . . . . Prevented 3 | . . . . . . . . 3 . . . . . . . . . . Kills | -11 -10 -10 -10 -9 -8 -7 -6 -6 -6 -6 -5 -5 -4 -4 -3 -2 -2 -1 ------- Run | Yrd Mat Min Exi Min Mat Fac Fac Low Low Zio Pro Fac Fac Ext Res Res Tes Acc Combat Hostiles Destroyed 36 | . . 6 . 2 9 4 2 . . . 6 2 . 2 2 . . 1 Melee 8 | . . . . . . . 1 . . . . 2 . 2 2 . . 1 Guns 22 | . . 6 . 2 6 1 1 . . . 6 . . . . . . . Cannons 6 | . . . . . 3 3 . . . . . . . . . . . . Classes Destroyed 12 | . 4 1 . 1 3 1 1 . . . . 1 . . . . . . Builder 1 | . . . . . 1 . . . . . . . . . . . . . Tunneler 1 | . 1 . . . . . . . . . . . . . . . . . Hauler 1 | . . . . . . . . . . . . 1 . . . . . . Recycler 1 | . 1 . . . . . . . . . . . . . . . . . Operator 5 | . . . . . 1 2 . . . . . 1 . . 1 . . . Watcher 13 | . 2 . . . . 1 4 . . . . 2 . . 2 2 . . Swarmer 14 | . . 6 . . 3 . . . . . 5 . . . . . . . Grunt 9 | . . . . 2 4 1 . . . . . . . 2 . . . . Sentry 9 | . . . . . 2 1 1 . . . 1 2 . . 2 . . . Hunter 1 | . . . . . . . 1 . . . . . . . . . . . Programmer 3 | . . . . . . 2 . . . . . . . . . . . 1 Federalist 1 | . 1 . . . . . . . . . . . . . . . . . Best Kill Streak 5 | . 2 3 . 2 2 2 2 . . . 5 1 . 2 1 1 . 1 Combat Bots Only 5 | . . 3 . 2 2 1 1 . . . 5 1 . 2 1 . . 1 Max Kills in Single Turn 2 | . 2 1 . 1 1 1 1 . . . 2 1 . 1 1 1 . 1 Gunslinging 1 | . . . . . . . . . . . 1 . . . . . . . Exploded . | . . . . . . . . . . . . . . . . . . . Melee 1 | . . . . . . . 1 . . . . 1 . 1 1 . . 1 Uniques/NPCs Destroyed . | . . . . . . . . . . . . . . . . . . . Combat | -11 -10 -10 -10 -9 -8 -7 -6 -6 -6 -6 -5 -5 -4 -4 -3 -2 -2 -1 -------- Run | Yrd Mat Min Exi Min Mat Fac Fac Low Low Zio Pro Fac Fac Ext Res Res Tes Acc Hostile Shots Fired 926 | . . 41 . 10 48 36 53 4 5 . 76 32 . 38 98 20 291 174 Missed 393 | . . 11 . 1 15 12 22 4 4 . 31 13 . 22 46 10 127 75 Hits 533 | . . 30 . 9 33 24 31 . 1 . 45 19 . 16 52 10 164 99 Melee 3 | . . . . . . . . . . . . . . . . . 3 . Projectile 530 | . . 30 . 9 33 24 31 . 1 . 45 19 . 16 52 10 161 99 AOE 1 | . . . . . . . . . . . . . . . . . 1 . Critical Strikes 18 | . . . . . 1 . . . . . 2 . . . 4 1 5 5 Damage Taken 10486 | . . 251 . 126 430 273 276 . 19 . 709 451 . 391 1255 247 3544 2514 Core 3315 | . . 15 . 53 6 16 12 . . . 82 43 . 61 193 50 1119 1665 Absorbed by Shields 255 | . . . . . . . . . . . . . . . . . 255 . Redirected to Shielding 42 | . . . . . . . . . . . . . . . . . . 42 Core Remaining (%) 83 | 100 . . . 72 98 97 . . . . 88 95 . 94 85 . 19 . Volleys Fired 135 | . 7 13 . 5 34 19 18 . . . 26 12 . . . . . 1 Largest 2 | . 2 2 . 2 2 2 2 . . . 2 2 . . . . . 1 Hottest 102 | . 40 40 . 40 102 102 60 . . . 60 60 . . . . . 75 Shots Fired 270 | . 14 26 . 10 67 38 38 . . . 52 24 . . . . . 1 Gun 230 | . 14 26 . 10 47 18 38 . . . 52 24 . . . . . 1 Cannon 40 | . . . . . 20 20 . . . . . . . . . . . . Launcher . | . . . . . . . . . . . . . . . . . . . Special . | . . . . . . . . . . . . . . . . . . . Kinetic 244 | . 14 26 . 10 50 30 38 . . . 52 24 . . . . . . Thermal 25 | . . . . . 17 8 . . . . . . . . . . . . Explosive . | . . . . . . . . . . . . . . . . . . . Electromagnetic 1 | . . . . . . . . . . . . . . . . . . 1 Robot Hit Streak 13 | . 1 5 . 5 13 8 7 . . . 8 4 . . . . . 3 Robot Miss Streak 7 | . 5 2 . 1 5 2 4 . . . 7 4 . . . . . . Penetration Max . | . . . . . . . . . . . . . . . . . . . Secondary Targets 4 | . . 2 . . . . . . . . 2 . . . . . . . Max Gunslinging Chain 1 | . . 1 . . . . . . . . 1 . . . . . . . Shots Hit Robots 209 | . 4 17 . 8 40 28 27 . . . 24 31 . 6 17 3 . 4 Core Hits 92 | . 5 6 . 4 20 11 10 . . . 9 11 . 4 8 2 . 2 Critical Kills 1 | . . . . 1 . . . . . . . . . . . . . . Critical Parts Destroyed . | . . . . . . . . . . . . . . . . . . . Critical Strikes 11 | . . . . 1 2 2 . . . . . 2 . 2 2 . . . Burn 2 | . . . . . 2 . . . . . . . . . . . . . Destroy 1 | . . . . 1 . . . . . . . . . . . . . . Blast 2 | . . . . . . 2 . . . . . . . . . . . . Sever 5 | . . . . . . . . . . . . 2 . 2 1 . . . Impale 1 | . . . . . . . . . . . . . . . 1 . . . Melee Attacks 165 | . . . . . . 1 13 . . 1 . 45 1 9 49 15 20 11 Thermal 7 | . . . . . . . . . . . . . . . . . . 7 Impact . | . . . . . . . . . . . . . . . . . . . Slashing 101 | . . . . . . 1 13 . . 1 . 45 1 9 14 15 2 . Piercing 57 | . . . . . . . . . . . . . . . 35 . 18 4 Sneak Attacks 4 | . . . . . . . . . . . . . . . 2 2 . . Combat Hostiles 1 | . . . . . . . . . . . . . . . 1 . . . Follow-up Attacks 9 | . . . . . . . . . . . . 5 . 2 1 1 . . Damage Inflicted 5871 | . 69 222 . 101 660 635 705 . . . 516 1231 . 304 1014 244 9 161 Guns 2386 | . 69 222 . 101 417 290 471 . . . 516 295 . . . . . 5 Cannons 588 | . . . . . 243 345 . . . . . . . . . . . . Explosions . | . . . . . . . . . . . . . . . . . . . Melee 2867 | . . . . . . . 234 . . . . 936 . 304 1014 244 . 135 Ramming 30 | . . . . . . . . . . . . . . . . . 9 21 Kinetic 2704 | . 69 222 . 101 510 520 471 . . . 516 295 . . . . . . Thermal 265 | . . . . . 150 115 . . . . . . . . . . . . Explosive . | . . . . . . . . . . . . . . . . . . . Electromagnetic 5 | . . . . . . . . . . . . . . . . . . 5 Impact . | . . . . . . . . . . . . . . . . . . . Slashing 1993 | . . . . . . . 234 . . . . 936 . 304 275 244 . . Piercing 874 | . . . . . . . . . . . . . . . 739 . . 135 Highest Corruption 16 | . . . . . 3 . 2 2 2 2 . . . . 9 2 14 16 Average Corruption 3 | . . . . . 3 . 1 2 2 2 . . . . 3 2 7 10 Corruption Purged 9 | . . . . . . . . . . . . . . . 5 . 4 . Corruption Blocked . | . . . . . . . . . . . . . . . . . . . Effects 47 | . . . . . 8 . 9 2 1 2 . . . . 9 . 11 5 Message Errors 9 | . . . . . 2 . 3 1 . . . . . . . . 2 1 Matter Fused 7 | . . . . . 1 . . 1 . 2 . . . . 1 . 1 1 Heat Flow Errors 3 | . . . . . . . 1 . . . . . . . . . 1 1 Energy Discharges 9 | . . . . . 1 . 1 . 1 . . . . . 4 . 1 1 Parts Rejected 2 | . . . . . . . . . . . . . . . . . 2 . Data Loss (minor) 6 | . . . . . 1 . 1 . . . . . . . 3 . 1 . Data Loss (major) 1 | . . . . . . . . . . . . . . . . . . 1 Misfires 4 | . . . . . 2 . 2 . . . . . . . . . . . Alerts 3 | . . . . . . . 1 . . . . . . . 1 . 1 . Misdirections 2 | . . . . . . . . . . . . . . . . . 2 . Weapon Failures 1 | . . . . . 1 . . . . . . . . . . . . . Overload Shots . | . . . . . . . . . . . . . . . . . . . Overflow Damage 164 | . . . . . . 12 71 . . . . 27 . . 23 4 . 27 Projectiles 12 | . . . . . . 12 . . . . . . . . . . . . Explosions . | . . . . . . . . . . . . . . . . . . . Melee 152 | . . . . . . . 71 . . . . 27 . . 23 4 . 27 Knockbacks 6 | . . . . . 2 4 . . . . . . . . . . . . Impact . | . . . . . . . . . . . . . . . . . . . Kinetic 6 | . . . . . 2 4 . . . . . . . . . . . . Secondary . | . . . . . . . . . . . . . . . . . . . Self-Inflicted Damage 12 | . . . . . . . . . . . . . . . . . 3 9 Shots . | . . . . . . . . . . . . . . . . . . . Rammed 13 | . . . . . . . . . . . . . . . . . 4 9 Targets Rammed 13 | . . . . . . . . . . . . . . . . . 4 9 Kicked . | . . . . . . . . . . . . . . . . . . . Crushed . | . . . . . . . . . . . . . . . . . . . Highest Temperature 352 | . . . . 16 174 240 219 1 8 1 352 10 2 232 171 . 337 120 Average Temperature 67 | . . . . 5 67 70 66 1 1 1 147 6 2 84 63 . 95 76 Received Heat Transfer 1190 | . . . . 72 153 72 75 . 9 . 45 81 . 51 139 18 268 207 Effects 3 | . . . . . . . . . . . 1 . . . . . 2 . Shutdowns 1 | . . . . . . . . . . . . . . . . . 1 . Energy Bleed 1 | . . . . . . . . . . . 1 . . . . . . . Matter Decay 1 | . . . . . . . . . . . . . . . . . 1 . Siege Activations . | . . . . . . . . . . . . . . . . . . . Martial Activations . | . . . . . . . . . . . . . . . . . . . Shielding Activations . | . . . . . . . . . . . . . . . . . . . Robots Disrupted . | . . . . . . . . . . . . . . . . . . . Combat Hostiles . | . . . . . . . . . . . . . . . . . . . Robots Corrupted . | . . . . . . . . . . . . . . . . . . . Combat Hostiles . | . . . . . . . . . . . . . . . . . . . Parts Fried . | . . . . . . . . . . . . . . . . . . . Impact Corruptions . | . . . . . . . . . . . . . . . . . . . Robots Melted . | . . . . . . . . . . . . . . . . . . . Combat Hostiles . | . . . . . . . . . . . . . . . . . . . Parts Melted . | . . . . . . . . . . . . . . . . . . . Heat Transferred 777 | . . . . . 518 259 . . . . . . . . . . . . Parts Sabotaged 2 | . . . . . . . . . . . . . . . . . 2 . Parts Stolen . | . . . . . . . . . . . . . . . . . . . Parts Stripped . | . . . . . . . . . . . . . . . . . . . Power Chain Reactions . | . . . . . . . . . . . . . . . . . . . Alert | -11 -10 -10 -10 -9 -8 -7 -6 -6 -6 -6 -5 -5 -4 -4 -3 -2 -2 -1 ------- Run | Yrd Mat Min Exi Min Mat Fac Fac Low Low Zio Pro Fac Fac Ext Res Res Tes Acc Maximum Alert Level 5 | . . . . . . . . . . . . 3 . . 1 . 5 4 Low Security (%) 72 | 100 100 100 . 100 100 100 100 . . . . . 100 100 96 100 . . Level 1 10 | . . . . . . . . . . . . 68 . . 3 . . . Level 2 3 | . . . . . . . . . . . . 24 . . . . . . Level 3 2 | . . . . . . . . . . . . 7 . . . . . 19 Level 4 5 | . . . . . . . . . . . . . . . . . . 80 Level 5 . | . . . . . . . . . . . . . . . . . . . High Security . | . . . . . . . . . . . . . . . . . . . Max Security 4 | . . . . . . . . . . . . . . . . . 99 . Peak Influence 2125 | . 12 90 . 50 82 105 49 . . . . 768 114 147 245 134 2125 1268 Initial 1268 | . . . . . . 7 5 . . . . 763 114 43 71 134 . 1268 Average 251 | . 1 35 . 25 25 24 8 . . . . 392 93 98 87 33 1694 1150 Influence Increases 4219 | . 24 140 . 57 300 254 220 105 75 . 420 824 45 214 555 41 765 180 Destroy 0b10 Robot/C 860 | . . 120 . 40 180 80 40 . . . 240 40 . 60 40 . . 20 Destroy 0b10 Robot/NC 110 | . 20 . . . 10 15 20 . . . . 20 . . 15 10 . . Destroy Leader 228 | . 4 20 . 10 40 32 28 . . . 30 26 . . 24 4 . 10 Allied During Kill 49 | . . . . . . . . . . . 45 . . 4 . . . . Successful Hack 143 | . . . . 7 5 34 22 . . . . 63 . . 12 . . . Disable Machine 45 | . . . . . 15 . 30 . . . . . . . . . . . Destroy Structure 129 | . . . . . 5 3 5 . . . . 30 . . 44 12 30 . Advance Influence 600 | . . . . . . . . . . . . 600 . . . . . . Partial Spotted 240 | . . . . . . 15 30 . . . . 15 15 . 105 15 30 15 Lose Combat Pursuer 1815 | . . . . . 45 75 45 105 75 . 105 30 30 150 315 . 705 135 Influence Decreases 4705 | . 24 140 . 57 282 260 232 40 63 77 160 849 191 166 453 280 250 1181 Entered New Map 1390 | . . . . . . 11 7 . 13 77 . 97 121 46 66 105 . 847 Time Decay 2514 | . 24 140 . 57 262 249 224 40 50 . 120 452 70 70 327 175 . 254 Search Patrol Dispatched 150 | . . . . . . . . . . . . 150 . . . . . . Lost Part 440 | . . . . . 20 . . . . . . . . 30 60 . 250 80 Lost Ally 60 | . . . . . . . . . . . 40 . . 20 . . . . Purge Threat 151 | . . . . . . . 1 . . . . 150 . . . . . . Squads Dispatched 61 | . 2 . . . 1 5 9 . . . . 7 . . 6 6 21 4 Investigation 12 | . 2 . . . 1 1 4 . . . . 2 . . 1 1 . . Extermination 14 | . . . . . . 2 2 . . . . 3 . . 4 2 . 1 Reinforcement 12 | . . . . . . 2 3 . . . . 2 . . 1 3 1 . Assault 22 | . . . . . . . . . . . . . . . . . 20 2 Garrison 1 | . . . . . . . . . . . . . . . . . . 1 Intercept . | . . . . . . . . . . . . . . . . . . . Searches Triggered 1 | . . . . . . . . . . . . 1 . . . . . . Construction Impeded . | . . . . . . . . . . . . . . . . . . . Haulers Reinforced . | . . . . . . . . . . . . . . . . . . . Active Scanning Responses . | . . . . . . . . . . . . . . . . . . . Cargo Convoy Interrupts . | . . . . . . . . . . . . . . . . . . . Stealth | -11 -10 -10 -10 -9 -8 -7 -6 -6 -6 -6 -5 -5 -4 -4 -3 -2 -2 -1 --------- Run | Yrd Mat Min Exi Min Mat Fac Fac Low Low Zio Pro Fac Fac Ext Res Res Tes Acc Distress Signals 10 | . 1 . . . 1 . 1 . . . . . 2 . 1 . 3 1 Communications Jammed 7 | . . . . . . . . . . . . . . . . . 7 . Distress Signals 7 | . . . . . . . . . . . . . . . . . 7 . Times Spotted 273 | . 7 6 . 2 15 11 16 7 8 . 22 11 2 12 37 13 82 22 Peak Tracking Total 33 | . 3 3 . 2 3 3 3 7 7 . 5 3 5 9 8 11 33 13 Tactical Retreats 45 | . . . . . 3 3 1 3 2 . 2 1 1 4 11 . 11 3 Traps | -11 -10 -10 -10 -9 -8 -7 -6 -6 -6 -6 -5 -5 -4 -4 -3 -2 -2 -1 ------- Run | Yrd Mat Min Exi Min Mat Fac Fac Low Low Zio Pro Fac Fac Ext Res Res Tes Acc Traps Triggered 10 | . 1 . . . . 2 3 . . . . . 1 1 . 1 . 1 Indirectly . | . . . . . . . . . . . . . . . . . . . Trap Hack Attempts . | . . . . . . . . . . . . . . . . . . . Triggered . | . . . . . . . . . . . . . . . . . . . Disarmed . | . . . . . . . . . . . . . . . . . . . Reprogrammed . | . . . . . . . . . . . . . . . . . . . Reused . | . . . . . . . . . . . . . . . . . . . Traps Extracted . | . . . . . . . . . . . . . . . . . . . Installed . | . . . . . . . . . . . . . . . . . . . Triggered . | . . . . . . . . . . . . . . . . . . . Machines | -11 -10 -10 -10 -9 -8 -7 -6 -6 -6 -6 -5 -5 -4 -4 -3 -2 -2 -1 ---------- Run | Yrd Mat Min Exi Min Mat Fac Fac Low Low Zio Pro Fac Fac Ext Res Res Tes Acc Machines Disabled 3 | . . . . . 1 . 2 . . . . . . . . . . . Max in Single Turn 1 | . . . . . 1 . 1 . . . . . . . . . . . Garrison Access 8 | . . . . . . 1 3 . . . . 2 1 . . 1 . . Energy Cycler 1 | . . . . . . . . . . . . . . . . . . 1 Machines Repaired . | . . . . . . . . . . . . . . . . . . . Machines Dismantled . | . . . . . . . . . . . . . . . . . . . Machines Sabotaged . | . . . . . . . . . . . . . . . . . . . Overloaded Fab Kills . | . . . . . . . . . . . . . . . . . . . Hacking | -11 -10 -10 -10 -9 -8 -7 -6 -6 -6 -6 -5 -5 -4 -4 -3 -2 -2 -1 --------- Run | Yrd Mat Min Exi Min Mat Fac Fac Low Low Zio Pro Fac Fac Ext Res Res Tes Acc Machines Accessed 67 | . . . 2 1 4 16 15 . 1 . . 11 3 1 10 2 . 1 Terminals 36 | . . . . 1 4 7 6 . . . . 7 1 1 8 1 . . Fabricators 8 | . . . . . . 3 4 . . . . 1 . . . . . . Repair Stations 2 | . . . . . . 1 1 . . . . . . . . . . . Recycling Units 4 | . . . . . . 1 1 . . . . . 1 . 1 . . . Scanalyzers 4 | . . . . . . 3 . . . . . 1 . . . . . . Garrison Access 10 | . . . . . . 1 3 . . . . 2 1 . 1 1 . 1 Total Hacks 182 | . . . 4 4 14 38 34 . 6 . . 46 3 5 24 3 . 1 Successful 65 | . . . 4 1 3 12 17 . 6 . . 15 3 1 2 1 . . Failed 117 | . . . . 3 11 26 17 . . . . 31 . 4 22 2 . 1 Catastrophic 30 | . . . . . 3 5 6 . . . . 8 . . 6 1 . 1 Database Lockouts . | . . . . . . . . . . . . . . . . . . . Manual 28 | . . . 1 . 8 7 4 . . . . 1 . . 7 . . . Terminals 102 | . . . . 4 14 12 18 . . . . 27 1 5 20 1 . . Fabricators 21 | . . . . . . 10 9 . . . . 2 . . . . . . Repair Stations 6 | . . . . . . 4 2 . . . . . . . . . . . Recycling Units 5 | . . . . . . 1 1 . . . . . 1 . 2 . . . Scanalyzers 16 | . . . . . . 8 . . . . . 8 . . . . . . Garrison Access 22 | . . . . . . 3 4 . . . . 9 1 . 2 2 . 1 Terminal Hacks 28 | . . . 4 1 3 2 5 . 6 . . 4 1 1 1 . . . Record 9 | . . . 3 . . . . . 6 . . . . . . . . . Prototype ID Bank 3 | . . . . . 1 . 1 . . . . . . . 1 . . . Open Door 2 | . . . . . . . . . . . . . 1 1 . . . . Terminal Index 1 | . . . . . 1 . . . . . . . . . . . . . Fabricator Index 2 | . . . . . . 1 1 . . . . . . . . . . . Scanalyzer Index 1 | . . . . . . 1 . . . . . . . . . . . . Alert Level 1 | . . . . . . . 1 . . . . . . . . . . . Unreport Threat 2 | . . . . . . . 1 . . . . 1 . . . . . . Locate Traps 2 | . . . . . 1 . . . . . . 1 . . . . . . Assault Status 1 | . . . . 1 . . . . . . . . . . . . . . Registered Components 2 | . . . . . . . 1 . . . . 1 . . . . . . Registered Prototypes 1 | . . . . . . . . . . . . 1 . . . . . . Proto ID Catalog 1 | . . . 1 . . . . . . . . . . . . . . . Fabricator Hacks 12 | . . . . . . 3 7 . . . . 2 . . . . . . Network Status 1 | . . . . . . 1 . . . . . . . . . . . . Load Schematic 6 | . . . . . . 1 4 . . . . 1 . . . . . . Build 5 | . . . . . . 1 3 . . . . 1 . . . . . . Repair Station Hacks 2 | . . . . . . 1 1 . . . . . . . . . . . Scan Component 2 | . . . . . . 1 1 . . . . . . . . . . . Recycling Unit Hacks 4 | . . . . . . 1 1 . . . . . 1 . 1 . . . Report Inventory 4 | . . . . . . 1 1 . . . . . 1 . 1 . . . Scanalyzer 11 | . . . . . . 4 . . . . . 7 . . . . . . Insert Component 5 | . . . . . . 2 . . . . . 3 . . . . . . Analyze 6 | . . . . . . 2 . . . . . 4 . . . . . . Garrison Access Hacks 8 | . . . . . . 1 3 . . . . 2 1 . . 1 . . Seal Access 8 | . . . . . . 1 3 . . . . 2 1 . . 1 . . Unauthorized Hacks . | . . . . . . . . . . . . . . . . . . . Terminals . | . . . . . . . . . . . . . . . . . . . Fabricators . | . . . . . . . . . . . . . . . . . . . Repair Stations . | . . . . . . . . . . . . . . . . . . . Recycling Units . | . . . . . . . . . . . . . . . . . . . Scanalyzers . | . . . . . . . . . . . . . . . . . . . Garrison Access . | . . . . . . . . . . . . . . . . . . . Data Cores Recovered 3 | . . . . . 1 . . . . . . 1 . . 1 . . . Used 1 | . . . . . . . . . . . . 1 . . . . . . Hacking Detections 52 | . . . . 1 4 14 11 . . . . 9 . 1 10 1 . 1 Full Trace Events 8 | . . . . . 1 1 3 . . . . 2 . . 1 . . . Feedback Events . | . . . . . . . . . . . . . . . . . . . Feedback Blocked . | . . . . . . . . . . . . . . . . . . . Robot Schematics Acquired 4 | . . . . . . . . . . 4 . . . . . . . . Robots Built . | . . . . . . . . . . . . . . . . . . . Authchips . | . . . . . . . . . . . . . . . . . . . Time . | . . . . . . . . . . . . . . . . . . . Total Robot Build Rating . | . . . . . . . . . . . . . . . . . . . Part Schematics Acquired 20 | . . . . . . 2 . . . 15 . 3 . . . . . . Parts Built 6 | . . . . . . 1 3 . . . . 2 . . . . . . Authchips . | . . . . . . . . . . . . . . . . . . . Time 564 | . . . . . . 134 335 . . . . 95 . . . . . . Total Part Build Rating 26 | . . . . . . 4 12 . . . . 10 . . . . . . Parts Repaired . | . . . . . . . . . . . . . . . . . . . Time . | . . . . . . . . . . . . . . . . . . . Parts Recycled . | . . . . . . . . . . . . . . . . . . . Recycled Matter . | . . . . . . . . . . . . . . . . . . . Retrieved Matter . | . . . . . . . . . . . . . . . . . . . Retrieved Components . | . . . . . . . . . . . . . . . . . . . Parts Scanalyzed 5 | . . . . . . 2 . . . . . 3 . . . . . . Part Schematics Acquired 5 | . . . . . . 2 . . . . . 3 . . . . . . Parts Damaged 2 | . . . . . . 1 . . . . . 1 . . . . . . Bothacking | -11 -10 -10 -10 -9 -8 -7 -6 -6 -6 -6 -5 -5 -4 -4 -3 -2 -2 -1 ------------ Run | Yrd Mat Min Exi Min Mat Fac Fac Low Low Zio Pro Fac Fac Ext Res Res Tes Acc Used RIF Installer . | . . . . . . . . . . . . . . . . . . . Robots Hacked . | . . . . . . . . . . . . . . . . . . . Non-combat . | . . . . . . . . . . . . . . . . . . . Combat . | . . . . . . . . . . . . . . . . . . . Robot Hacks Applied . | . . . . . . . . . . . . . . . . . . . Relay Couplers Released . | . . . . . . . . . . . . . . . . . . . Fabnet Peak Effective % . | . . . . . . . . . . . . . . . . . . . Robots Rewired . | . . . . . . . . . . . . . . . . . . . Allies Hacked . | . . . . . . . . . . . . . . . . . . . Hacks Repelled . | . . . . . . . . . . . . . . . . . . . Allies | -11 -10 -10 -10 -9 -8 -7 -6 -6 -6 -6 -5 -5 -4 -4 -3 -2 -2 -1 -------- Run | Yrd Mat Min Exi Min Mat Fac Fac Low Low Zio Pro Fac Fac Ext Res Res Tes Acc Total Allies 6 | . . . . . . . . . . 5 . . . 1 . . . . Largest Group 5 | . . . . . . . . . . 5 5 . . 1 . . . . Highest-Rated Group 143 | . . . . . . . . . . 143 143 . . 46 . . . . Highest-Rated Ally 46 | . . . . . . . . . . 39 39 . . 46 . . . . Total Orders . | . . . . . . . . . . . . . . . . . . . Ally Attacks 34 | . . . . . . . . . . . 29 . . 5 . . . . Total Damage 645 | . . . . . . . . . . . 510 . . 135 . . . . Kills 8 | . . . . . . . . . . . 7 . . 1 . . . . Allies Corrupted . | . . . . . . . . . . . . . . . . . . . Allies Melted . | . . . . . . . . . . . . . . . . . . . Intel | -11 -10 -10 -10 -9 -8 -7 -6 -6 -6 -6 -5 -5 -4 -4 -3 -2 -2 -1 ------- Run | Yrd Mat Min Exi Min Mat Fac Fac Low Low Zio Pro Fac Fac Ext Res Res Tes Acc Active Infowar (turns) 1601 | . . . . . . . . . . . . . . . 75 632 352 542 Optics 1585 | . . . . . . . . . . . . . . . 59 632 352 542 Cloaking 815 | . . . . . . . . . . . . . . . 37 617 161 . Jamming 192 | . . . . . . . . . . . . . . . . . 192 . Robot Analysis Total . | . . . . . . . . . . . . . . . . . . . Derelict Logs Recovered 5 | . . 1 . . . . . 2 1 . 1 . . . . . . . Drone Launches . | . . . . . . . . . . . . . . . . . . . Drone Recoveries . | . . . . . . . . . . . . . . . . . . . Exploration | -11 -10 -10 -10 -9 -8 -7 -6 -6 -6 -6 -5 -5 -4 -4 -3 -2 -2 -1 ------------- Run | Yrd Mat Min Exi Min Mat Fac Fac Low Low Zio Pro Fac Fac Ext Res Res Tes Acc Turns Passed 8841 | 57 173 347 402 125 736 1027 1098 148 113 516 251 1134 141 155 892 632 352 542 Spaces Moved 16066 | 41 111 163 212 58 438 1640 2570 493 377 995 490 2383 401 408 2754 1288 681 563 Core 278 | 15 . . . . . . . . . . . . . . . . 3 260 Treads . | . . . . . . . . . . . . . . . . . . . Legs 1044 | 26 111 163 212 58 377 97 . . . . . . . . . . . . Wheels . | . . . . . . . . . . . . . . . . . . . Hover 303 | . . . . . . . . . . . . . . . . . . 303 Flight 14441 | . . . . . 61 1543 2570 493 377 995 490 2383 401 408 2754 1288 678 . Fastest Speed 6 | 50 120 190 190 190 50 42 30 30 30 30 30 27 18 6 9 25 17 50 Average Speed 37 | 94 128 190 190 190 110 48 30 30 30 30 30 30 29 13 16 25 25 83 Slowest Speed 550 | 120 190 190 190 190 120 190 42 30 30 90 30 34 31 18 25 25 50 550 Overloaded Moves 70 | . . . . . . . . . . . . . . 28 42 . . . Propulsion Burnouts . | . . . . . . . . . . . . . . . . . . . Robots Hopped 64 | . . . . . . 4 9 . . . . 9 . 6 13 10 13 . Potential Cave-ins 4 | . . . . . . . . . . . . . . . . . 4 . Cave-ins Triggered 1 | . . . . . . . . . . . . . . . . . 1 . Exploration Rate (%) 43 | 4 31 31 59 13 35 44 49 70 57 85 56 45 11 51 65 28 77 12 Regions Visited 18 Branch Regions 9 Pre-discovered Areas 5 | . . . 1 . . . . 1 1 2 . . . . . . . . Known Exits Taken 2 | . . . . . . . . . . . . 1 . 1 . . . . Unknown Exits Taken 16 | 1 1 1 1 1 1 1 1 1 1 1 1 . 1 . 1 1 1 . Scrap Searched 5 | . . . . . . . . 1 2 1 1 . . . . . . . Spaces Dug 68 | . . . . . . 1 6 . . . . 15 . . 22 8 16 . Terrain Destroyed 74 | . . . . . 5 2 6 . . . . 15 . . 22 8 16 . Melee 68 | . . . . . . 1 6 . . . . 15 . . 22 8 16 . Projectile 6 | . . . . . 5 1 . . . . . . . . . . . . AOE . | . . . . . . . . . . . . . . . . . . . Terrain Rammed . | . . . . . . . . . . . . . . . . . . . Walls Destroyed . | . . . . . . . . . . . . . . . . . . . Machines Disabled . | . . . . . . . . . . . . . . . . . . . Actions | -11 -10 -10 -10 -9 -8 -7 -6 -6 -6 -6 -5 -5 -4 -4 -3 -2 -2 -1 --------- Run | Yrd Mat Min Exi Min Mat Fac Fac Low Low Zio Pro Fac Fac Ext Res Res Tes Acc Total 18252 | 59 127 175 212 63 624 1833 2831 492 376 1210 546 2710 420 491 3100 1568 807 608 Wait 1568 | 5 . . . . 125 123 213 . . 206 26 259 1 56 233 261 47 13 Move 15928 | 40 110 162 211 57 437 1632 2551 492 376 994 489 2364 400 395 2729 1269 657 563 Hop 57 | . . . . . . 3 9 . . . . 9 . 6 11 8 11 . Pick Up 102 | 8 5 . 1 . 10 19 7 . . 2 2 7 3 1 22 6 7 2 Fast Attach 18 | . . . . . . 4 . . . 1 . 1 . . 5 . 4 3 Attach 83 | 6 1 . . 1 9 7 2 . . 1 1 2 7 5 17 3 15 6 Detach 13 | . . . . . 3 . . . . 1 . . 2 2 3 1 1 . Swap 53 | . 2 . . . 5 9 10 . . 1 1 7 2 2 9 4 1 . Drop 74 | . 2 . . . 1 13 8 . . 3 1 10 2 . 23 3 7 1 Fire 135 | . 7 13 . 5 34 19 18 . . . 26 12 . . . . . 1 Melee 152 | . . . . . . 1 13 . . 1 . 39 1 6 48 13 20 10 Ram 12 | . . . . . . . . . . . . . . . . . 3 9 Kick . | . . . . . . . . . . . . . . . . . . . Crush . | . . . . . . . . . . . . . . . . . . . Escape Stasis 57 | . . . . . . 3 . . . . . . 2 18 . . 34 . Rewire . | . . . . . . . . . . . . . . . . . . . Trap . | . . . . . . . . . . . . . . . . . . . Miscellaneous . | . . . . . . . . . . . . . . . . . . . Route ------- -11/Scrapyard -10/Materials -10/Mines (discovered 3 exits: [*Mat x2] / *Exi) -10/Exiles (discovered 2 exits: *Min x2) -9/Mines -8/Materials -7/Factory (discovered 2 exits: *Fac x2) -6/Factory -6/Lower Caves -6/Lower Caves -6/Zion -5/Proximity Caves -5/Factory (discovered 3 exits: *Fac / [*Upp x2]) -4/Factory (discovered 2 exits: Res / *Ext) -4/Extension (discovered 2 exits: *Res / *Cet) -3/Research (discovered 3 exits: *Res x2 / Qua) -2/Research (discovered 2 exits: *Acc / [*Tes]) -2/Testing -1/Access History --------- Turn | Location | Event 18 | -11/Scrapyard | Discovered new exit (range 15) 58 | -11/Scrapyard | Entered Materials 59 | -10/Materials | Met a group of wandering Federalists 126 | -10/Materials | Discovered new exit (range 15) 231 | -10/Materials | Entered Mines 233 | -10/Mines | Learned 2 Materials zone layouts 238 | -10/Mines | Received a Rocket Launcher from a helpful Derelict 254 | -10/Mines | Discovered new exit (range 12) 271 | -10/Mines | Discovered new exit (range 9) 302 | -10/Mines | Build established: Mutant 569 | -10/Mines | Deemed a non-threat by the Exiles lab entrance 569 | -10/Mines | Discovered new exit (range 5) 578 | -10/Mines | Entered Exiles 611 | -10/Exiles | Discovered new exit (range 15) 634 | -10/Exiles | Met 8R-AWN 664 | -10/Exiles | Met EX-HEX 717 | -10/Exiles | Met EX-BIN 738 | -10/Exiles | Aligned with FarCom system 740 | -10/Exiles | Given EX-Vault access code 786 | -10/Exiles | Opened EX-Vault 799 | -10/Exiles | Found Flying Fortress v7 838 | -10/Exiles | Warned to stay clear of 0b10 Research branches 864 | -10/Exiles | Exiles lab attacked by MAIN.C 904 | -10/Exiles | Learned location of Zion (-6) 959 | -10/Exiles | Discovered new exit (range 12) 980 | -10/Exiles | Left Exiles lab with Flying Fortress v7 980 | -10/Exiles | Entered Mines 1034 | -9/Mines | Discovered new exit (range 10) 1105 | -9/Mines | Entered Materials 1105 | -8/Materials | Evolved 4 slots: Propulsion x2, Utility x2 1589 | -8/Materials | Build established: Scavenger-Mutant 1772 | -8/Materials | Discovered new exit (range 15) 1841 | -8/Materials | Entered Factory 1841 | -7/Factory | Evolved 2 slots: Propulsion x1, Utility x1 1903 | -7/Factory | Discovered new exit (range 7) 2453 | -7/Factory | Build established: Hacker-Mutant 2560 | -7/Factory | Discovered new exit (range 13) 2709 | -7/Factory | Fabricated Imp. Cesium-ion Thruster? 2868 | -7/Factory | Entered another Factory area 2868 | -6/Factory | Evolved 2 slots: Power x1, Propulsion x1 3178 | -6/Factory | Build established: Hacker-Sprinter 3581 | -6/Factory | Discovered new exit (range 3) 3654 | -6/Factory | Fabricated Imp. Cesium-ion Thruster? 3712 | -6/Factory | Fabricated Imp. Cesium-ion Thruster? 3838 | -6/Factory | Fabricated Imp. Cesium-ion Thruster? 3966 | -6/Factory | Entered Lower Caves 4006 | -6/Lower Caves | Learned Factory emergency access door positions 4061 | -6/Lower Caves | Discovered new exit (range 5) 4114 | -6/Lower Caves | Entered another Lower Caves area 4115 | -6/Lower Caves | Learned Factory stockpile data 4141 | -6/Lower Caves | Attracted the attention of an 0b10 base 4196 | -6/Lower Caves | Learned location of Extension (-4) 4196 | -6/Lower Caves | Learned location of 1 exit from Research 4196 | -6/Lower Caves | Learned Research trap positions 4222 | -6/Lower Caves | Discovered new exit (range 5) 4227 | -6/Lower Caves | Entered Zion 4245 | -6/Zion | Discovered new exit (range 12) 4275 | -6/Zion | Gained Derelict followers 4299 | -6/Zion | System corruption cleaned by Quarantine Array 4332 | -6/Zion | Learned location of Warlord (-4) 4470 | -6/Zion | Found Prototype Device 4477 | -6/Zion | Learned location of Armory (-4) 4520 | -6/Zion | Rebuked by Imprinter 4534 | -6/Zion | Found Prototype Special Weapon 4534 | -6/Zion | Identified RU-N14's Throwing Claymores 4535 | -6/Zion | Identified Phasing AFG 4743 | -6/Zion | Entered Proximity Caves 4743 | -5/Proximity Caves | Accompanied by 5 allies 4838 | -5/Proximity Caves | Spotter reported a threat 4845 | -5/Proximity Caves | Spotter reported a threat 4851 | -5/Proximity Caves | Learned location of 1 exit from Factory 4876 | -5/Proximity Caves | Attracted the attention of an 0b10 checkpoint 4894 | -5/Proximity Caves | Spotter reported a threat 4914 | -5/Proximity Caves | Spotted B-75 Beast 4917 | -5/Proximity Caves | Spotter reported a threat 4953 | -5/Proximity Caves | Discovered new exit (range 13) 4994 | -5/Proximity Caves | Entered Factory 4994 | -5/Factory | Evolved 2 slots: Propulsion x1, Utility x1 4995 | -5/Factory | Identified exit to Factory 5235 | -5/Factory | Discovered new exit (range 16) 5294 | -5/Factory | Search patrols dispatched 5392 | -5/Factory | Fabricated Imp. Surge Thruster? 5828 | -5/Factory | Discovered new exit (range 11) 6128 | -5/Factory | Entered another Factory area 6128 | -4/Factory | Evolved 2 slots: Propulsion x1, Utility x1 6129 | -4/Factory | Identified exit to Research 6268 | -4/Factory | Discovered new exit (range 6) 6269 | -4/Factory | Entered Extension 6295 | -4/Extension | Rescued a captive Derelict 6363 | -4/Extension | Spotted B-86 Titan 6373 | -4/Extension | Spotted B-86 Titan 6393 | -4/Extension | Discovered new exit (range 15) 6393 | -4/Extension | Discovered exit to Research (range 15) 6410 | -4/Extension | Lost 3 parts (2n1u) 6414 | -4/Extension | Identified exit to Cetus 6424 | -4/Extension | Entered Research 6424 | -3/Research | Evolved 2 slots: Propulsion x1, Utility x1 6425 | -3/Research | Identified exit to Quarantine 6426 | -3/Research | Loaded intel: 75 trap records 6676 | -3/Research | Discovered new exit (range 15) 6966 | -3/Research | Spotted B-86 Titan 7201 | -3/Research | Lost 3 parts (1p2n) 7300 | -3/Research | Discovered new exit (range 17) 7305 | -3/Research | Found Prototype Device 7306 | -3/Research | Identified Exp. EM Disruption Field 7316 | -3/Research | Entered another Research area 7316 | -2/Research | Evolved 2 slots: Propulsion x1, Utility x1 7600 | -2/Research | Discovered new exit (range 7) 7859 | -2/Research | Build established: Infiltrator-Sprinter 7932 | -2/Research | Discovered new exit (range 19) 7948 | -2/Research | Entered Testing 7949 | -2/Testing | Maximum security lockdown engaged 8020 | -2/Testing | Scanned by Researcher 8093 | -2/Testing | Lost 6 parts (1p3u2w) 8097 | -2/Testing | Spotted Striker 8098 | -2/Testing | Spotted Striker 8113 | -2/Testing | Spotted Alpha 7 8156 | -2/Testing | Spotted Investigator 8165 | -2/Testing | Crushed by falling debris 8174 | -2/Testing | Spotted Striker 8231 | -2/Testing | System corruption reached 10% 8251 | -2/Testing | Core integrity fell below 50% 8288 | -2/Testing | Discovered new exit (range 5) 8300 | -2/Testing | Core integrity fell below 20% 8300 | -2/Testing | Entered Access 8300 | -1/Access | Evolved 2 slots: Power x1, Propulsion x1 8327 | -1/Access | Lost 19 parts (4p10n4u1w) 8541 | -1/Access | Build established: Mutant 8550 | -1/Access | First assault squad dispatched 8611 | -1/Access | Garrison activated, responded to threat 8733 | -1/Access | System corruption reached 10% 8754 | -1/Access | Core integrity fell below 50% 8768 | -1/Access | Core integrity fell below 20% 8778 | -1/Access | Lost 8 parts (2n3u3w) 8842 | -1/Access | Energy Cycler disabled 8842 | -1/Access | Destroyed by exploding Energy Cycler Last Messages --------------- 08750_ Slug penetrates Wall. 08754_ M-36 Artificer repairs G-73 Enforcer. 08756_ System corrupted: Heat flow error (+147). 08756_ Penetrated by Slug. 08757_ G-73 Enforcer IFF system glitched. 08757_ G-73 Enforcer suffers critical hit (Burn). 08760_ P-80 Master resets G-73 Enforcer, system corruption cleaned. 08760_ M-36 Artificer repairs G-73 Enforcer. 08760_ P-80 Master resets G-73 Enforcer, system corruption cleaned. 08762_ M-36 Artificer repairs G-73 Enforcer. 08776_ IJX HJI,KXTV&JV%PR>KCDM 08829_ P-80 Master resets P-80 Master, system corruption cleaned. 08829_ Dropped Imp. Gyrokinetic Inverter. 08840_ System corrupted: Matter fused (-8). 08842_ Triggered Gamma Bomb Trap. 08842_ A bubble of electromagnetic force engulfs the area. 08842_ Gamma Bomb Trap short circuited. 08842_ Door malfunctions. 08842_ ALERT: Power surge detected, dispatching additional patrols. 08842_ Energy Cycler explodes. Map ----- +----------------------------------------------------+ | ?????????????????????????????""" # #?# | | ????????????????????????????#"F # #?# | | ????????????????########????#""" # #?# | | ??????????????? ???#""" # #?# | | ?????????????? ???#""" # #?# | | ????????????? ???# # #?# | | ????????????? ???? # #?# | | ?????????????? ?????? ?# #?# | | ?????????????? ???????? ???# #?# | | ??????????????? ##########+###### ### | | ?????????????????# = | | ?????????????????# | | ?????????????????# | | ?????????????????# | | ?????????????????# | | ?????????????????# | | ?????????????????# | | ?????????????????######## ##########+####### | | ????????????????????????# #????????????????? | | ????????????????????????# #????????????????? | | ????????????????????????# #????????????????? | | ?????????????????#??????# u#????????????????? | | ?????????????????# ????# #????????????????? | | ?????????????????# ??# #????????????????? | | ????????# # # #????????????????? | | ????????# ; ;@ #????????????????? | | ????????# ; ; #????????????????? | | ????????# ; / #????????????????? | | ????????+ # ; #????????????????? | | ????????######???# ; #????????????????? | | ?????????????????# ; #????????????????? | | ?????????????????# ; #????????????????? | | ????????????????#; ; A #????????????????? | | ????????????????#; # #????????????????? | | ????????????????## /R #????????????????? | | ?????????????????########R #????????????????? | | ????????????????????????# #????????????????? | | ????????????????????????? #????????????????? | | ?????????????????????????###+##+#????????????????? | | ?????????????????????????????????????????????????? | | ?????????????????????????????????????????????????? | | ?????????????????????????????????????????????????? | | ?????????????????????????????????????????????????? | | ?????????????????????????????????????????????????? | | ?????????????????????????????????????????????????? | | ?????????????????????????????????????????????????? | | ?????????????????????????????????????????????????? | | ?????????????????????????????????????????????????? | | ?????????????????????????????????????????????????? | | ?????????????????????????????????????????????????? | +----------------------------------------------------+ Best States ------------- Heat Dissipation 125 Energy Generation 43 Energy Capacity 430 Matter Stores 300 Matter Capacity 300 Sight Range 20 Terrain Scan Density 10 Jamming Range 14 Cloak Strength 3 Additional Mass Support 9 Base Temperature (-) 200 Armor Coverage 600 Propulsion Shielding 33 Point Defense Rating 240 Evasion (%) 80 Targeting Accuracy 8 Offensive Hacking 12 Defensive Hacking 30 Item Schematics ----------------- Imp. VTOL Module | -7/Factory | Scanalyzed Imp. Cesium-ion Thruster | -7/Factory | Scanalyzed Lyr. Medium Armor Plating | -6/Zion | Archive Adv. Shield Generator | -6/Zion | Archive Lgt. Fission Core | -6/Zion | Archive Imp. Arc Projector | -6/Zion | Archive Focal Shield | -6/Zion | Archive Wave Gun | -6/Zion | Archive Arm. Leg | -6/Zion | Archive Dispersion Rifle | -6/Zion | Archive Railgun | -6/Zion | Archive Lrn. Missile Launcher | -6/Zion | Archive Hvy. Treads | -6/Zion | Archive Point Defense System | -6/Zion | Archive Imp. Core Shielding | -6/Zion | Archive System Guard | -6/Zion | Archive Imp. Shock Absorption System | -6/Zion | Archive Imp. Surge Thruster | -5/Factory | Scanalyzed Mic. Nuclear Core | -5/Factory | Scanalyzed Imp. System Restoration Module | -5/Factory | Scanalyzed Robot Schematics ------------------ A-15 Conveyor | -6/Zion | Archive L-41 Fighter | -6/Zion | Archive G-50 Soldier | -6/Zion | Archive X-77 Beamer | -6/Zion | Archive Fabricated ------------ Imp. Cesium-ion Thruster | x1 | -7/Factory Imp. Cesium-ion Thruster | x1 | -6/Factory Imp. Cesium-ion Thruster | x1 | -6/Factory Imp. Cesium-ion Thruster | x1 | -6/Factory Imp. Surge Thruster | x2 | -5/Factory Repaired ---------- Nothing Alien Tech Used ----------------- None Achievements -------------- Speed Demon Whoosh! Challenges ------------ None Game ------ Seed ArmageddonSmallAutobeam Manual? 0 Play Time 02:23:15 Cumulative 143.0 hours Start 2025.05.23 @ 21:00:09 End 2025.05.24 @ 14:52:39 Sessions 3 Manual Loads 0 Difficulty Rogue Special Mode None Game No. 208 Rogue 205 Adventurer 3 Explorer 0 Win Type - Total 0 Types 0/0/0/0/0/0/0/0/0/0 Lore% 33 Gallery% 54 Achievement% 43 Wizard Run 0 Options --------- Layout 0 ASCII 0 Keyboard 0 Movement Mouse Keybinds 0 Fullscreen 2 Font 18/SmallcapsGlow Map View 76x50 Zoom Use 0% Tactical HUD 1 Map Filters NONE Filters NONE Steam 1 RUN: 09b03375-25b9-4d7e-b868-f947fb915052